bitfinex/quotes_ETHUSD_20251126
["timestamp","ask_amount","ask_price","bid_price","bid_amount"]
[1764159687971,4.0853,2895.4,2894.0,0.1546]
[1764159688178,0.4513,2895.3,2894.0,0.1546]
[1764159688780,0.4513,2895.3,2893.8,0.1468]
[1764159688979,4.0853,2895.3,2893.8,0.1468]
[1764159689201,4.0853,2895.3,2893.5,0.1468]
[1764159689202,0.405504,2895.0,2893.5,0.1468]
[1764159689372,0.221,2894.9,2893.5,0.1468]
[1764159689700,0.4513,2894.8,2893.5,0.1468]
[1764159689905,0.405504,2894.7,2893.3,0.1468]
[1764159690265,0.405504,2894.7,2892.3,0.4513]
[1764159690266,0.4612,2893.4,2892.3,0.4513]
[1764159690463,0.221,2893.3,2892.6,0.4869]
[1764159691303,0.141,2893.6,2893.2,0.4724]
[1764159691474,0.221,2893.5,2893.2,0.627]
[1764159691676,0.221,2893.5,2892.5,0.4869]
[1764159691900,0.221,2893.5,2892.6,0.405504]
[1764159692074,0.221,2893.5,2892.6,0.505504]
[1764159692396,0.221,2893.5,2892.6,0.5869]
[1764159692597,0.4513,2893.6,2892.6,0.5869]
[1764159692810,0.4513,2893.8,2892.6,0.5869]
[1764159693111,0.221,2893.7,2892.6,0.4869]
[1764159693607,0.1876,2893.9,2892.6,0.5869]
[1764159693608,0.6723,2893.6,2892.6,0.5869]
[1764159694280,0.4513,2893.5,2892.6,0.4869]
[1764159694598,0.4513,2893.5,2892.5,0.001]
[1764159694766,0.221,2893.4,2892.5,0.001]
[1764159694967,0.4612,2892.6,2892.5,0.001]
[1764159695302,0.4513,2893.3,2892.5,0.001]
[1764159695491,0.1876,2892.8,2892.5,0.001]
[1764159695666,0.221,2892.7,2892.5,0.001]
[1764159695866,0.4513,2893.3,2892.5,0.001]
[1764159696102,0.6723,2893.2,2892.5,0.001]
[1764159696270,0.221,2893.1,2892.5,0.001]
[1764159696474,0.4513,2893.3,2892.5,0.001]
[1764159696786,0.221,2893.2,2892.5,0.001]
[1764159696971,0.4513,2893.3,2892.5,0.4879]
[1764159697165,0.4513,2893.6,2892.5,0.5879]
[1764159697403,0.221,2893.5,2892.5,0.5879]
[1764159697798,0.221,2893.4,2892.5,0.5879]
[1764159698400,0.221,2893.5,2892.8,0.1]
[1764159698573,0.221,2893.5,2892.8,0.5869]
[1764159699605,0.4513,2893.7,2892.8,0.5869]
[1764159699804,0.221,2893.6,2892.8,0.4869]
[1764159700477,0.6723,2893.6,2892.5,0.001]
[1764159700676,0.6723,2893.6,2892.5,0.4879]
[1764159700981,0.4513,2893.5,2892.5,0.5879]
[1764159701605,0.221,2893.6,2892.5,0.5879]
[1764159701606,0.221,2893.6,2893.0,0.1]
[1764159701984,0.4513,2893.8,2893.1,0.1546]
[1764159702291,0.141,2894.0,2893.3,0.1]
[1764159702292,0.362,2894.0,2893.3,0.1]
[1764159702811,0.141,2894.0,2893.3,0.5869]
[1764159703705,0.1876,2894.3,2893.3,0.5869]
[1764159703892,0.4086,2894.3,2893.2,0.4869]
[1764159704094,0.4833,2894.2,2893.2,0.4869]
[1764159704294,0.7043,2894.2,2893.2,0.4869]
[1764159704496,0.1937,2894.5,2893.3,0.1]
[1764159704724,0.1937,2894.5,2893.6,0.1]
[1764159705029,0.4833,2894.7,2893.6,0.1]
[1764159705180,0.221,2894.7,2893.9,0.1]
[1764159705530,0.1876,2894.9,2893.9,0.1]
[1764159705825,0.4833,2895.0,2894.3,0.1]
[1764159705974,0.4833,2895.0,2894.2,0.1]
[1764159706178,0.4833,2895.4,2894.3,0.1507]
[1764159706425,0.221,2895.5,2894.9,0.4946]
[1764159706622,0.4833,2895.9,2894.9,0.4946]
[1764159706911,0.4853,2896.0,2895.0,0.5638]
[1764159707079,0.7063,2896.0,2895.0,0.5638]
[1764159707279,0.4853,2896.0,2895.1,0.1352]
[1764159707610,0.002,2896.0,2895.2,0.1]
[1764159707810,0.002,2896.0,2895.3,0.1]
[1764159708012,0.002,2896.0,2895.2,0.5638]
[1764159708329,0.1937,2895.9,2895.2,0.4638]
[1764159708610,0.1937,2895.9,2894.8,0.5638]
[1764159708921,0.4833,2895.8,2894.8,0.5638]
[1764159709208,0.4833,2895.8,2894.3,0.1507]
[1764159709209,0.4833,2895.8,2894.5,0.4638]
[1764159709411,0.4833,2895.8,2894.6,0.405504]
[1764159709610,0.4833,2895.8,2894.6,0.505504]
[1764159709909,0.4833,2895.8,2894.6,0.969304]
[1764159710302,0.4833,2895.8,2894.7,0.4638]
[1764159710499,0.1937,2895.9,2894.7,0.4638]
[1764159710817,0.221,2895.8,2894.9,0.1]
[1764159711114,0.221,2895.8,2894.7,0.4638]
[1764159711415,0.7043,2895.8,2894.7,0.4638]
[1764159711709,0.7063,2895.8,2894.7,0.4638]
[1764159711910,0.4833,2895.7,2894.4,0.4638]
[1764159712277,0.4833,2895.7,2894.5,0.1]
[1764159712477,0.221,2895.6,2894.5,0.1]
[1764159712711,0.4833,2895.7,2894.6,0.4638]
[1764159712919,0.7063,2895.8,2894.6,0.4638]
[1764159713213,0.4833,2895.7,2894.7,0.1]
[1764159714317,0.4825,2895.7,2894.6,0.5638]
[1764159715298,0.4825,2895.7,2894.4,0.405504]
[1764159715507,0.4825,2895.7,2894.3,0.1507]
[1764159716082,2.68303,2895.6,2894.3,0.1507]
[1764159716512,1.20889411,2895.5,2894.1,0.1515]
[1764159716716,0.4833,2895.5,2894.1,0.1515]
[1764159716894,0.7043,2895.4,2894.2,0.4638]
[1764159717293,0.4833,2895.3,2894.2,0.4638]
[1764159718216,0.4833,2895.3,2894.1,0.1515]
[1764159718408,0.6834,2894.2,2893.5,0.5638]
[1764159719525,0.6834,2894.2,2893.5,0.4638]
[1764159720229,0.221,2894.6,2894.1,0.6461]
[1764159720410,0.4833,2894.4,2893.5,0.1]
[1764159720922,0.4833,2894.4,2893.5,0.5638]
[1764159721134,0.4833,2894.7,2893.5,0.5638]
[1764159721499,0.4833,2895.6,2894.6,0.6461]
[1764159721721,0.4833,2895.6,2894.7,0.4946]
[1764159721902,0.4833,2895.6,2894.7,0.5946]
[1764159722108,0.4833,2895.6,2894.7,1.0584]
[1764159722306,0.002,2895.8,2894.8,0.4638]
[1764159722634,0.223,2895.8,2894.8,0.4638]
[1764159722929,0.7063,2895.8,2894.8,0.4638]
[1764159723231,0.7063,2895.8,2894.7,0.1]
[1764159723409,0.7063,2895.8,2894.7,0.5638]
[1764159723606,0.002,2895.8,2894.7,0.5638]
[1764159723810,0.002,2895.8,2894.7,0.4638]
[1764159724014,0.002,2895.8,2894.7,0.5638]
[1764159724208,0.002,2895.8,2894.7,0.4638]
[1764159724412,0.002,2895.8,2895.0,0.1]
[1764159724620,0.4833,2895.7,2895.0,0.1]
[1764159724807,0.4833,2895.7,2894.6,0.2515]
[1764159725006,0.4833,2895.7,2894.7,0.4944]
[1764159725211,0.002,2895.8,2894.8,0.405504]
[1764159725422,0.002,2895.8,2894.8,0.505504]
[1764159725733,0.002,2895.8,2894.8,0.999904]
[1764159726210,0.002,2895.8,2895.1,0.1]
[1764159726611,0.4573,2895.7,2894.6,0.6459]
[1764159726815,0.4573,2895.7,2894.6,0.1515]
[1764159727021,0.4573,2895.7,2894.6,0.2515]
[1764159727223,0.4573,2895.7,2894.6,0.7459]
[1764159727949,0.4573,2895.7,2894.9,0.1]
[1764159728149,0.002,2895.8,2895.6,0.4564]
[1764159728734,0.002,2895.8,2894.7,0.405504]
[1764159729032,0.002,2895.8,2895.1,0.1]
[1764159729633,0.002,2895.8,2895.7,0.4564]
[1764159731035,0.002,2895.8,2895.7,0.9508]
[1764159731626,0.002,2895.8,2895.7,1.0508]
[1764159732208,0.002,2895.8,2895.7,1.456304]
[1764159733947,0.002,2896.0,2895.9,0.505504]
[1764159734135,0.002,2896.0,2895.9,0.966104]
[1764159734335,0.002,2896.1,2895.9,0.966104]
[1764159734336,0.002,2896.6,2896.5,0.1]
[1764159734633,0.002,2896.6,2896.5,1.75279411]
[1764159735035,0.0016,2896.9,2896.8,0.505504]
[1764159735214,0.0016,2896.9,2896.8,0.966104]
[1764159735417,0.1937,2898.1,2897.1,0.505504]
[1764159735617,0.1937,2898.1,2897.1,1.111004]
[1764159735842,0.4662,2898.4,2897.1,1.577604]
[1764159736066,0.1805,2897.9,2897.1,1.577604]
[1764159736243,0.1805,2898.1,2897.1,1.577604]
[1764159736620,0.4682,2898.5,2897.1,1.577604]
[1764159737214,0.002,2898.5,2897.1,1.577604]
[1764159737418,0.4682,2898.3,2897.1,1.577604]
[1764159737819,0.002,2898.3,2897.1,1.577604]
[1764159738243,0.1805,2897.9,2897.1,1.477604]
[1764159738446,0.002,2898.0,2897.1,1.477604]
[1764159738655,0.002,2898.0,2897.1,1.577604]
[1764159738949,0.0012,2897.2,2897.1,1.577604]
[1764159742323,0.0012,2897.2,2897.1,1.56936039]
[1764159743630,0.002,2898.0,2897.4,0.1]
[1764159743842,0.002,2898.0,2897.4,0.5606]
[1764159744262,0.002,2898.0,2897.4,1.65279411]
[1764159744563,0.002,2898.3,2898.2,0.505504]
[1764159744864,0.002,2899.1,2898.7,9.03507308]
[1764159745036,0.002,2900.0,2899.7,0.505504]
[1764159745362,0.002,2900.0,2899.7,2.15829811]
[1764159745860,0.002,2900.0,2899.7,0.966104]
[1764159746366,0.002,2900.0,2899.7,2.15829811]
[1764159746768,0.002,2900.0,2899.9,0.505504]
[1764159746932,0.002,2900.0,2899.9,1.187104]
[1764159747260,0.002,2900.0,2899.9,1.653704]
[1764159748172,0.002,2900.1,2900.0,0.1]
[1764159748359,0.002,2900.1,2900.0,0.505504]
[1764159748764,0.002,2900.1,2899.9,0.321]
[1764159749682,0.002,2900.1,2900.0,0.5606]
[1764159749848,0.002,2900.1,2900.0,0.1]
[1764159750348,0.9364,2900.1,2899.3,0.1]
[1764159750547,0.2997,2900.0,2899.6,0.1]
[1764159750766,0.002,2900.1,2899.6,0.1]
[1764159750972,0.002,2900.1,2899.9,0.1]
[1764159751280,0.002,2900.1,2900.0,0.1]
[1764159751852,0.002,2900.1,2899.8,0.405504]
[1764159752181,0.002,2900.0,2899.9,0.505504]
[1764159752475,0.002,2900.0,2899.9,0.1]
[1764159752775,0.002,2900.0,2899.9,1.432704]
[1764159753163,0.002,2900.0,2899.9,0.966104]
[1764159754983,0.002,2900.0,2899.9,9.23667897]
[1764159755282,0.002,2900.0,2899.9,9.96227308]
[1764159758080,0.002,2900.0,2899.9,1.23109811]
[1764159758281,0.4702,2900.0,2899.9,0.82559411]
[1764159758663,0.002,2900.0,2899.9,0.82559411]
[1764159760280,0.002,2900.0,2899.9,2.15829811]
[1764159760684,0.002,2900.0,2899.9,10.18227308]
[1764159763690,0.0012,2900.0,2899.9,10.18227308]
[1764159765185,0.0012,2900.0,2899.9,9.71567308]
[1764159767090,0.0012,2900.0,2899.9,10.19567308]
[1764159767681,0.0012,2900.0,2899.9,9.71567308]
[1764159768375,0.0012,2900.0,2899.9,10.19567308]
[1764159768581,0.0012,2900.0,2899.9,9.71567308]
[1764159768775,0.002,2900.1,2900.0,1.13109811]
[1764159769092,0.002,2900.1,2900.0,1.71329811]
[1764159769292,0.002,2900.1,2900.0,1.23109811]
[1764159770966,0.002,2900.1,2900.0,1.71329811]
[1764159771173,0.002,2900.1,2900.0,2.19329811]
[1764159771370,0.002,2900.1,2900.0,1.71329811]
[1764159773892,0.002,2900.4,2900.0,1.61329811]
[1764159774096,0.0004,2900.8,2900.7,0.505504]
[1764159774286,0.1923,2901.4,2900.9,0.505504]
[1764159774483,0.1923,2901.4,2900.9,9.51727308]
[1764159774795,0.4945,2901.0,2900.9,9.03507308]
[1764159775300,0.002,2901.0,2900.9,9.03507308]
[1764159775963,0.4945,2901.0,2900.9,9.03507308]
[1764159776165,0.002,2901.0,2900.9,9.51727308]
[1764159776393,0.002,2901.0,2900.9,9.99727308]
[1764159776794,0.002,2901.0,2900.9,9.51727308]
[1764159777298,0.1923,2901.7,2900.9,9.51727308]
[1764159777299,0.1923,2901.7,2901.0,0.82559411]
[1764159777516,0.1923,2901.7,2901.0,1.78779411]
[1764159777727,0.1923,2901.7,2901.1,0.405504]
[1764159777888,0.692,2901.9,2901.6,0.1]
[1764159778399,0.4925,2901.7,2901.6,0.1]
[1764159778830,0.9922,2901.7,2901.3,0.405504]
[1764159779116,0.2199,2901.6,2901.5,0.1]
[1764159779412,0.1923,2901.9,2901.5,0.72559411]
[1764159779712,0.4925,2901.6,2901.5,0.72559411]
[1764159780427,0.9922,2901.6,2901.5,0.72559411]
[1764159780786,0.9922,2901.6,2901.4,0.1]
[1764159780992,0.1923,2901.9,2901.0,7.80397497]
[1764159780993,0.7196,2901.5,2901.1,0.72559411]
[1764159781283,0.7196,2901.5,2898.9,4.14182508]
[1764159781284,0.4925,2901.1,2898.9,4.14182508]
[1764159781481,0.4997,2901.4,2900.6,0.1]
[1764159781715,0.4997,2901.4,2901.0,0.72559411]
[1764159782018,0.4997,2901.4,2901.0,0.82559411]
[1764159782191,0.4997,2901.4,2901.2,0.1]
[1764159782509,0.4925,2901.1,2901.0,0.82559411]
[1764159782709,0.4925,2901.1,2901.0,0.72559411]
[1764159782909,0.9922,2901.1,2901.0,0.72559411]
[1764159783114,0.9922,2901.1,2901.0,0.82559411]
[1764159784603,0.9922,2901.1,2901.0,0.72559411]
[1764159784809,0.9922,2901.1,2901.0,0.82559411]
[1764159785010,0.4925,2901.1,2901.0,0.82559411]
[1764159785221,0.9922,2901.1,2901.0,0.82559411]
[1764159785612,0.9922,2901.1,2900.9,0.1]
[1764159785808,0.6915,2901.0,2900.9,0.1]
[1764159786422,0.2199,2901.0,2900.9,0.1]
[1764159787223,0.6915,2901.0,2900.9,0.1]
[1764159788222,0.4716,2901.5,2900.9,0.5605]
[1764159788409,0.4708,2901.5,2901.2,0.1]
[1764159788615,0.4708,2901.5,2900.9,0.4605]
[1764159788616,0.4547,2901.0,2900.8,0.72559411]
[1764159788791,0.2852,2900.9,2900.8,1.35109811]
[1764159788998,0.1923,2901.9,2901.0,0.1]
[1764159789327,0.1923,2901.9,2901.3,0.1]
[1764159789719,0.4547,2901.4,2901.3,0.1]
[1764159791204,0.4716,2901.7,2901.3,0.1]
[1764159791527,0.4547,2901.4,2901.3,0.1]
[1764159791930,0.1923,2901.9,2901.3,0.1]
[1764159791931,0.002,2901.6,2901.3,0.1]
[1764159792129,0.002,2901.6,2901.5,0.1]
[1764159792624,0.4567,2901.6,2901.5,0.1]
[1764159793316,0.002,2901.6,2901.5,9.49557308]
[1764159793523,0.002,2901.6,2901.5,9.97357308]
[1764159794127,0.1903,2902.6,2902.5,0.1]
[1764159794305,1.144,2902.6,2902.2,0.72559411]
[1764159794510,0.2504,2902.3,2902.2,0.1]
[1764159794713,0.2504,2902.3,2902.0,0.1]
[1764159795026,0.4765,2902.2,2902.0,0.1]
[1764159795226,0.1903,2902.6,2902.0,0.1]
[1764159795439,0.6668,2902.6,2901.9,0.22]
[1764159795730,0.6668,2902.6,2902.0,0.1]
[1764159795934,0.6668,2902.6,2902.2,0.1]
[1764159796163,0.6668,2902.6,2902.2,0.82559411]
[1764159796320,0.4772,2902.3,2902.2,0.1]
[1764159796630,0.4772,2902.3,2901.9,0.505504]
[1764159796832,0.4765,2902.5,2902.1,0.1]
[1764159797132,0.1903,2902.6,2902.4,0.1]
[1764159797298,0.9537,2902.5,2902.0,0.1]
[1764159797502,0.9537,2902.5,2901.9,0.405504]
[1764159797699,0.4765,2902.8,2902.3,0.1]
[1764159797903,0.4765,2902.8,2902.6,0.1]
[1764159798330,0.4772,2902.7,2902.6,0.1]
[1764159798498,0.4772,2902.7,2901.9,0.897304]
[1764159798499,0.4772,2902.7,2902.3,0.1]
[1764159798704,0.2504,2902.3,2902.1,0.1]
[1764159799127,0.1805,2903.2,2902.1,0.1]
[1764159799128,0.9514,2902.2,2902.1,0.505504]
[1764159799430,0.4772,2902.2,2902.1,0.505504]
[1764159800533,0.9537,2902.2,2902.1,0.1]
[1764159800734,0.4765,2902.5,2902.1,0.1]
[1764159801039,0.4765,2902.5,2902.2,0.1]
[1764159801415,0.4772,2902.3,2902.2,0.1]
[1764159802036,0.4765,2902.8,2902.2,0.1]
[1764159802338,0.4765,2902.8,2902.4,0.1]
[1764159802739,0.4772,2902.5,2902.2,0.72559411]
[1764159802913,0.2504,2902.3,2902.2,0.72559411]
[1764159803113,0.2504,2902.3,2902.2,0.82559411]
[1764159803930,0.7269,2902.3,2902.2,0.1]
[1764159804128,0.7269,2902.3,2901.8,0.82559411]
[1764159804453,0.6675,2901.9,2901.8,1.23109811]
[1764159804744,0.4772,2901.9,2901.8,1.23109811]
[1764159805143,0.4765,2902.7,2902.2,0.1]
[1764159805328,0.4772,2902.3,2902.2,0.1]
[1764159806649,0.9537,2902.3,2902.2,0.1]
[1764159807739,0.9537,2902.3,2901.9,0.1]
[1764159807931,0.2488,2902.0,2901.9,0.1]
[1764159808467,0.4765,2902.2,2901.9,0.1]
[1764159808757,0.4772,2902.0,2901.9,0.1]
[1764159809128,0.4772,2902.0,2901.7,0.405504]
[1764159809328,0.4772,2902.0,2901.8,0.1]
[1764159809528,0.4772,2902.0,2901.9,0.1]
[1764159809829,0.4772,2902.0,2901.6,0.405504]
[1764159809830,0.4765,2902.0,2901.6,0.405504]
[1764159810030,0.4765,2902.0,2901.8,0.1]
[1764159810231,0.002,2902.3,2901.6,0.405504]
[1764159810430,0.4785,2902.3,2901.6,0.405504]
[1764159810771,0.4785,2902.3,2901.7,0.1]
[1764159811353,0.4785,2902.3,2901.8,0.1]
[1764159811530,0.4785,2902.3,2901.6,0.405504]
[1764159811531,0.4785,2902.3,2902.0,0.1]
[1764159811952,0.4772,2902.1,2902.0,0.1]
[1764159812553,0.4785,2902.3,2902.0,0.1]
[1764159812748,0.002,2902.3,2902.0,0.1]
[1764159813132,0.0012,2902.3,2902.2,0.1]
[1764159813757,0.4784,2902.3,2902.2,0.1]
[1764159813950,0.4784,2902.3,2902.0,0.1]
[1764159814145,0.9549,2902.3,2902.0,0.1]
[1764159814351,0.2496,2902.1,2901.9,0.405504]
[1764159814663,0.4765,2902.2,2901.9,0.625504]
[1764159814958,0.4772,2902.0,2901.9,0.625504]
[1764159815166,0.4772,2902.0,2901.7,0.32]
[1764159815334,0.2496,2901.9,2901.7,0.32]
[1764159815949,0.4765,2902.2,2901.7,0.32]
[1764159818963,0.4772,2901.8,2901.7,0.32]
[1764159819140,0.4765,2902.2,2901.7,0.32]
[1764159819330,0.4765,2902.2,2902.0,0.1]
[1764159819863,0.4765,2902.2,2901.7,0.6992]
[1764159819864,0.4772,2902.1,2901.8,0.72559411]
[1764159820049,0.0012,2902.3,2902.0,0.1]
[1764159820255,0.0012,2902.3,2902.2,0.1]
[1764159820766,0.0012,2902.3,2902.2,0.7258]
[1764159821148,0.0012,2902.3,2902.2,0.1]
[1764159821366,0.9549,2902.3,2900.8,8.31194249]
[1764159821568,0.6675,2901.6,2901.5,0.001]
[1764159821750,0.4765,2902.2,2901.5,0.001]
[1764159821955,0.4772,2901.6,2901.5,0.101]
[1764159822557,0.9537,2901.6,2901.5,0.001]
[1764159822939,0.4765,2902.0,2901.5,0.001]
[1764159823141,0.4772,2901.6,2901.5,0.101]
[1764159823773,0.9537,2901.6,2901.5,0.001]
[1764159832075,0.9537,2901.6,2901.2,0.001]
[1764159832376,0.2496,2901.4,2901.2,0.001]
[1764159832677,0.9514,2901.3,2901.2,0.001]
[1764159833277,1.1714,2901.3,2901.2,0.001]
[1764159833979,1.1714,2901.3,2901.0,0.001]
[1764159834279,0.2518,2901.1,2901.0,0.001]
[1764159834674,0.7302,2901.1,2901.0,0.001]
[1764159836393,0.9502,2901.1,2901.0,0.001]
[1764159838018,0.9494,2901.1,2901.0,0.001]
[1764159840209,0.7294,2901.1,2901.0,0.001]
[1764159840406,0.9494,2901.1,2901.0,0.001]
[1764159840709,0.7294,2901.1,2901.0,0.001]
[1764159840877,0.9494,2901.1,2901.0,0.001]
[1764159841275,0.73092078,2902.2,2901.0,0.001]
[1764159841276,0.1903,2902.2,2901.0,0.9377]
[1764159841609,0.6984,2901.9,2901.1,0.2469]
[1764159842169,0.6984,2901.9,2901.1,0.7112]
[1764159842373,0.22,2901.9,2901.1,0.7112]
[1764159842573,0.1903,2902.2,2901.2,0.4643]
[1764159842798,0.6984,2902.4,2901.9,0.4724]
[1764159843408,0.4784,2902.4,2901.9,0.4724]
[1764159845382,0.4784,2902.4,2901.5,0.1]
[1764159845587,0.4784,2902.4,2901.5,0.5776]
[1764159845925,0.4784,2902.4,2901.9,0.4633]
[1764159846287,0.22,2902.5,2901.9,0.9409]
[1764159846721,0.002,2902.6,2901.9,0.9409]
[1764159848531,0.002,2902.6,2901.9,1.76649411]
[1764159848821,0.002,2902.6,2901.9,1.28889411]
[1764159849228,0.002,2902.6,2901.9,2.17199811]
[1764159849806,0.002,2902.6,2902.2,0.1]
[1764159850005,0.002,2902.6,2902.0,0.405504]
[1764159850191,0.002,2902.6,2902.2,0.4633]
[1764159850519,0.002,2902.6,2902.2,0.2568]
[1764159850720,0.002,2902.6,2902.2,0.662304]
[1764159850895,0.002,2902.6,2902.2,0.762054]
[1764159852424,0.002,2902.6,2902.2,0.633654]
[1764159852651,0.002,2902.6,2902.2,0.1284]
[1764159853845,0.4674,2902.3,2901.4,0.3484]
[1764159854143,0.0012,2902.3,2902.2,0.1284]
[1764159854309,0.0012,2902.3,2902.2,0.22815]
[1764159855148,0.0012,2902.3,2902.1,0.09975]
[1764159855828,0.0012,2902.3,2902.2,0.1284]
[1764159857236,0.0012,2902.3,2902.2,0.762054]
[1764159859542,0.002,2902.6,2902.5,0.505254]
[1764159859849,0.002,2902.6,2902.5,1.35924811]
[1764159860010,0.002,2902.6,2902.5,1.48764811]
[1764159860215,0.002,2902.9,2902.8,0.09975]
[1764159860416,0.002,2902.9,2902.8,0.22815]
[1764159860615,0.002,2902.9,2902.8,0.35655]
[1764159860818,0.4516,2903.8,2903.4,0.09975]
[1764159861343,0.1903,2904.4,2903.4,0.09975]
[1764159861526,0.6439,2904.0,2903.4,0.09975]
[1764159861944,0.4549,2903.5,2902.6,0.72559411]
[1764159862148,0.4549,2903.5,2903.1,0.09975]
[1764159862347,0.4549,2903.5,2902.4,0.1284]
[1764159862348,0.4516,2903.4,2902.1,0.72559411]
[1764159862522,0.4508,2903.4,2902.5,0.09975]
[1764159862727,0.4508,2903.4,2902.2,0.405504]
[1764159862930,0.4508,2903.4,2902.3,0.09975]
[1764159864149,0.4508,2903.4,2902.4,0.09975]
[1764159864952,0.4508,2903.4,2902.6,0.09975]
[1764159866148,0.1923,2904.0,2902.6,0.82534411]
[1764159866450,0.4516,2903.5,2902.8,0.09975]
[1764159866641,0.4516,2903.5,2902.9,0.09975]
[1764159866852,0.1923,2904.0,2903.0,8.31194249]
[1764159867027,0.6439,2904.0,2903.1,0.09975]
[1764159867354,0.6439,2904.0,2903.0,8.41169249]
[1764159867532,0.4516,2903.9,2903.0,8.41169249]
[1764159867728,0.4516,2903.9,2903.1,0.72559411]
[1764159867916,0.4516,2903.8,2902.7,0.22]
[1764159868122,0.4516,2903.8,2903.1,0.09975]
[1764159868318,0.4516,2903.8,2902.9,0.09975]
[1764159868738,0.4549,2903.0,2902.7,0.72559411]
[1764159868945,0.4549,2903.0,2902.7,0.09975]
[1764159869359,0.4516,2903.6,2902.9,0.1292]
[1764159869655,0.4516,2903.6,2902.7,0.09975]
[1764159869823,4.0846,2903.6,2901.2,0.1292]
[1764159870024,4.0846,2903.6,2902.2,0.09975]
[1764159870257,0.4516,2903.5,2902.3,0.72559411]
[1764159870424,0.4516,2903.5,2902.5,0.09975]
[1764159870625,0.4516,2903.5,2902.3,0.09975]
[1764159870825,0.4516,2903.5,2902.2,8.33847681]
[1764159871038,0.4516,2903.5,2902.3,0.72559411]
[1764159872073,0.6448,2902.4,2901.9,0.94559411]
[1764159872356,0.4516,2903.5,2902.3,0.72559411]
[1764159872659,0.1899,2902.7,2902.4,0.09975]
[1764159873035,0.6415,2902.7,2902.4,0.09975]
[1764159873670,0.1899,2902.7,2902.4,0.09975]
[1764159874471,0.4549,2902.5,2901.9,0.625504]
[1764159874672,0.6415,2902.7,2902.1,0.09975]
[1764159874673,0.4549,2902.4,2902.1,0.09975]
[1764159875031,0.4549,2902.4,2901.9,0.72559411]
[1764159875769,0.1899,2902.7,2901.8,8.55847681]
[1764159875989,0.6415,2902.7,2902.2,0.09975]
[1764159876338,0.4516,2902.6,2902.2,0.09975]
[1764159878687,0.1899,2902.7,2902.2,8.43822681]
[1764159879172,0.6415,2902.9,2902.6,8.33847681]
[1764159879978,0.1899,2902.9,2902.6,8.33847681]
[1764159880475,0.4516,2903.2,2902.6,8.33847681]
[1764159880846,0.4516,2903.2,2902.6,8.43822681]
[1764159881047,0.4516,2903.2,2902.6,8.33847681]
[1764159882570,0.4516,2903.1,2902.6,8.33847681]
[1764159882766,0.002,2903.4,2903.0,8.33847681]
[1764159883081,0.4536,2903.4,2902.8,0.09975]
[1764159883370,0.4536,2903.4,2902.7,0.72559411]
[1764159883541,0.4549,2902.8,2902.7,0.72559411]
[1764159883746,0.6448,2902.8,2901.9,0.72659411]
[1764159883946,0.9065,2902.7,2901.9,0.72659411]
[1764159884365,0.4798,2902.6,2901.9,0.72659411]
[1764159885546,0.4798,2902.6,2901.9,0.001]
[1764159885971,0.4798,2902.6,2901.9,0.72659411]
[1764159887178,0.479,2902.6,2901.9,0.72659411]
[1764159887382,0.479,2902.6,2902.2,8.33847681]
[1764159887750,0.1899,2902.8,2902.2,8.33847681]
[1764159889253,0.4798,2902.7,2902.2,8.33847681]
[1764159889954,0.4798,2902.7,2902.3,0.72559411]
[1764159890699,0.1899,2902.8,2902.2,8.33847681]
[1764159890861,0.4798,2902.7,2902.2,8.33847681]
[1764159892895,0.1899,2902.8,2902.3,0.82534411]
[1764159893097,0.4798,2902.7,2902.3,0.82534411]
[1764159893298,0.4798,2902.7,2902.3,0.72559411]
[1764159894700,0.1899,2902.8,2902.3,0.72559411]
[1764159894872,0.4798,2902.7,2902.3,0.72559411]
[1764159895071,0.1899,2902.8,2902.3,0.72559411]
[1764159895577,0.4798,2903.1,2902.6,8.33847681]
[1764159895805,0.002,2903.4,2902.6,8.33847681]
[1764159896003,0.4798,2903.3,2902.6,8.33847681]
[1764159897409,0.6486,2902.7,2902.3,0.72659411]
[1764159897618,0.4648,2902.6,2902.3,0.72659411]
[1764159898690,0.1858,2902.7,2902.3,0.72659411]
[1764159899094,0.6656,2902.7,2902.3,0.72659411]
[1764159899611,0.4798,2902.6,2902.3,0.72659411]
[1764159900510,0.1858,2902.7,2902.3,0.72659411]
[1764159900712,0.6656,2902.7,2902.3,0.72659411]
[1764159901083,0.4798,2902.6,2902.3,0.72659411]
[1764159901428,0.4648,2902.4,2902.3,0.001]
[1764159901781,0.9446,2902.4,2902.3,0.001]
[1764159904930,0.4648,2902.4,2902.3,0.001]
[1764159905079,0.4798,2902.6,2902.3,0.001]
[1764159905417,0.4648,2902.4,2902.3,0.001]
[1764159905827,0.9588,2902.4,2902.3,0.001]
[1764159906035,0.6798,2902.7,2902.3,0.131]
[1764159906183,0.6798,2902.7,2902.3,8.46947681]
[1764159907491,0.494,2902.6,2902.3,8.33947681]
[1764159907887,0.1858,2902.7,2902.3,8.33947681]
[1764159908095,0.002,2902.7,2902.3,8.33947681]
[1764159908288,0.002,2902.7,2902.6,0.22975]
[1764159908695,0.002,2902.7,2902.6,0.35975]